[Event "Early-Titled-Tuesday-Blitz-September-05-2023"]
[Site "Chess.com"]
[Date "2023.09.05"]
[Round "2"]
[White "Yeremyan_ChessMate"]
[Black "ViIIagra"]
[Result "1-0"]
[WhiteElo "2650"]
[BlackElo "2940"]
[TimeControl "180+1"]
[EndTime "8:17:25 PDT"]
[Termination "Yeremyan_ChessMate won by checkmate"]

1. d4 {[%clk 0:03:00]} 1... d6 {[%clk 0:02:58.7]} 2. Nf3 {[%clk 0:03:00.8]} 2...
Nf6 {[%clk 0:02:55.1]} 3. g3 {[%clk 0:03:01.4]} 3... c6 {[%clk 0:02:49]} 4. Bg2
{[%clk 0:03:02]} 4... Bf5 {[%clk 0:02:49.7]} 5. O-O {[%clk 0:03:02.5]} 5... h6
{[%clk 0:02:48.9]} 6. c4 {[%clk 0:03:03.1]} 6... e6 {[%clk 0:02:48.9]} 7. Nfd2
{[%clk 0:03:03.7]} 7... d5 {[%clk 0:02:48.4]} 8. Nc3 {[%clk 0:03:03.9]} 8...
Nbd7 {[%clk 0:02:47.7]} 9. e4 {[%clk 0:03:04.4]} 9... dxe4 {[%clk 0:02:45.6]}
10. Ndxe4 {[%clk 0:03:05.1]} 10... Be7 {[%clk 0:02:46.1]} 11. Be3 {[%clk
0:03:03.7]} 11... Nxe4 {[%clk 0:02:44.3]} 12. Nxe4 {[%clk 0:03:03.7]} 12... O-O
{[%clk 0:02:44.8]} 13. Nc3 {[%clk 0:03:03.8]} 13... Bf6 {[%clk 0:02:41.7]} 14.
d5 {[%clk 0:03:03]} 14... exd5 {[%clk 0:02:07.9]} 15. cxd5 {[%clk 0:03:01.5]}
15... c5 {[%clk 0:02:08.7]} 16. d6 {[%clk 0:02:57.7]} 16... Rb8 {[%clk
0:02:06.3]} 17. Re1 {[%clk 0:02:53.6]} 17... Re8 {[%clk 0:01:54.6]} 18. Qd2
{[%clk 0:02:49.7]} 18... Qb6 {[%clk 0:01:45.9]} 19. Rac1 {[%clk 0:02:36.3]}
19... Qb4 {[%clk 0:01:36.9]} 20. a3 {[%clk 0:02:33.7]} 20... Qb3 {[%clk
0:01:37]} 21. Bd5 {[%clk 0:02:31]} 21... Bxc3 {[%clk 0:01:29.5]} 22. Rxc3 {[%clk
0:02:22.9]} 22... Qb5 {[%clk 0:01:29.5]} 23. Rcc1 {[%clk 0:02:18.2]} 23... Be6
{[%clk 0:01:17.9]} 24. Bg2 {[%clk 0:02:17.9]} 24... b6 {[%clk 0:01:18.2]} 25. b4
{[%clk 0:02:17.4]} 25... c4 {[%clk 0:01:17.2]} 26. Bd4 {[%clk 0:02:11.7]} 26...
Rbc8 {[%clk 0:01:12.7]} 27. Rc3 {[%clk 0:02:09.9]} 27... Qg5 {[%clk 0:01:12.9]}
28. Rce3 {[%clk 0:02:08.3]} 28... Red8 {[%clk 0:01:11.6]} 29. h4 {[%clk
0:02:06.5]} 29... Qh5 {[%clk 0:01:08.5]} 30. Bc3 {[%clk 0:02:06.3]} 30... Nf6
{[%clk 0:01:02.3]} 31. Qd4 {[%clk 0:02:03.4]} 31... Rd7 {[%clk 0:00:59.4]} 32.
Bf3 {[%clk 0:02:01]} 32... Qg6 {[%clk 0:00:58.3]} 33. h5 {[%clk 0:01:53.5]}
33... Qf5 {[%clk 0:00:52.9]} 34. g4 {[%clk 0:01:30]} 34... Qg5 {[%clk
0:00:52.6]} 35. Re5 {[%clk 0:01:26.8]} 35... Qh4 {[%clk 0:00:52.6]} 36. Rxe6
{[%clk 0:01:25.8]} 36... fxe6 {[%clk 0:00:51.2]} 37. Rxe6 {[%clk 0:01:26.7]}
37... Rf8 {[%clk 0:00:46.2]} 38. Qxc4 {[%clk 0:01:24.7]} 38... Kh8 {[%clk
0:00:44.7]} 39. Re7 {[%clk 0:01:11.6]} 39... Rxd6 {[%clk 0:00:26]} 40. Qc7
{[%clk 0:01:10.1]} 40... Rfd8 {[%clk 0:00:26.4]} 41. Kg2 {[%clk 0:00:57.9]}
41... Qg5 {[%clk 0:00:26.3]} 42. Be5 {[%clk 0:00:51.3]} 42... Nxg4 {[%clk
0:00:14.9]} 43. Rxg7 {[%clk 0:00:32.1]} 43... Ne3+ {[%clk 0:00:15.1]} 44. Kh3
{[%clk 0:00:32.8]} 44... Qf5+ {[%clk 0:00:15]} 45. Bg4 {[%clk 0:00:33.5]} 45...
Nxg4 {[%clk 0:00:08.7]} 46. Rh7+ {[%clk 0:00:32.6]} 46... Kg8 {[%clk 0:00:09.4]}
47. Qg7# {[%clk 0:00:33]} 1-0

[Event "Early-Titled-Tuesday-Blitz-September-05-2023"]
[Site "Chess.com"]
[Date "2023.09.05"]
[Round "2"]
[White "Karttunen"]
[Black "francyIM"]
[Result "0-1"]
[WhiteElo "2579"]
[BlackElo "2847"]
[TimeControl "180+1"]
[EndTime "8:17:25 PDT"]
[Termination "francyIM won by resignation"]

1. e4 {[%clk 0:03:00.9]} 1... Nc6 {[%clk 0:02:57.6]} 2. d4 {[%clk 0:03:00]} 2...
d5 {[%clk 0:02:57]} 3. e5 {[%clk 0:03:00]} 3... Bf5 {[%clk 0:02:56.3]} 4. c3
{[%clk 0:03:00]} 4... e6 {[%clk 0:02:55.6]} 5. f4 {[%clk 0:02:56.4]} 5... f6
{[%clk 0:02:54.1]} 6. Nf3 {[%clk 0:02:56.4]} 6... Nge7 {[%clk 0:02:52.9]} 7. Be3
{[%clk 0:02:55.4]} 7... Ng6 {[%clk 0:02:45.4]} 8. Nbd2 {[%clk 0:02:53.2]} 8...
Qd7 {[%clk 0:02:45.2]} 9. b4 {[%clk 0:02:49]} 9... Be7 {[%clk 0:02:40.3]} 10.
Be2 {[%clk 0:02:48.6]} 10... O-O {[%clk 0:02:39.7]} 11. O-O {[%clk 0:02:48.1]}
11... Rf7 {[%clk 0:02:31.8]} 12. Qe1 {[%clk 0:02:30.9]} 12... Raf8 {[%clk
0:02:29.1]} 13. Qg3 {[%clk 0:02:30.2]} 13... Bd8 {[%clk 0:02:24.5]} 14. Nb3
{[%clk 0:02:27.1]} 14... b6 {[%clk 0:02:24.2]} 15. a4 {[%clk 0:02:17.9]} 15...
Bc2 {[%clk 0:02:23.9]} 16. Nbd2 {[%clk 0:02:13.4]} 16... a5 {[%clk 0:02:20.6]}
17. Bb5 {[%clk 0:02:11]} 17... Kh8 {[%clk 0:02:14.7]} 18. Rfc1 {[%clk
0:02:04.5]} 18... Bf5 {[%clk 0:02:14]} 19. c4 {[%clk 0:02:01.6]} 19... Nge7
{[%clk 0:02:12.6]} 20. cxd5 {[%clk 0:01:57.8]} 20... Qxd5 {[%clk 0:02:12.1]} 21.
Bc4 {[%clk 0:01:54.2]} 21... Qd7 {[%clk 0:02:12.1]} 22. bxa5 {[%clk 0:01:44.3]}
22... Nxa5 {[%clk 0:02:10.6]} 23. Be2 {[%clk 0:01:20.9]} 23... Nd5 {[%clk
0:02:09.7]} 24. Bf2 {[%clk 0:01:19.4]} 24... Be7 {[%clk 0:02:09.8]} 25. Nh4
{[%clk 0:01:04.5]} 25... fxe5 {[%clk 0:01:58.8]} 26. fxe5 {[%clk 0:01:04.5]}
26... Bb4 {[%clk 0:01:46.1]} 27. Be1 {[%clk 0:00:51.3]} 27... Ne7 {[%clk
0:01:27.7]} 28. Ndf3 {[%clk 0:00:46.4]} 28... Bxe1 {[%clk 0:01:26]} 29. Rxe1
{[%clk 0:00:44.7]} 29... h6 {[%clk 0:01:26.3]} 30. Nxf5 {[%clk 0:00:42.3]} 30...
Nxf5 {[%clk 0:01:26.3]} 31. Qg6 {[%clk 0:00:42.2]} 31... Nxd4 {[%clk 0:01:14]}
32. Bd3 {[%clk 0:00:41.9]} 32... Nf5 {[%clk 0:01:04.2]} 33. Rad1 {[%clk
0:00:38]} 33... Qxa4 {[%clk 0:00:55.1]} 34. g4 {[%clk 0:00:37.5]} 34... Qf4
{[%clk 0:00:44.3]} 35. Rf1 {[%clk 0:00:30.5]} 35... Nc6 {[%clk 0:00:34.7]} 36.
gxf5 {[%clk 0:00:26.3]} 36... Ne7 {[%clk 0:00:35.2]} 37. Qg3 {[%clk 0:00:25.6]}
37... Qe3+ {[%clk 0:00:34.2]} 38. Kg2 {[%clk 0:00:25.5]} 38... Nxf5 {[%clk
0:00:34.7]} 39. Bxf5 {[%clk 0:00:25.2]} 39... Rxf5 {[%clk 0:00:35]} 40. Rd7
{[%clk 0:00:18.6]} 40... g5 {[%clk 0:00:30.4]} 41. Qh3 {[%clk 0:00:10.9]} 41...
g4 {[%clk 0:00:29.9]} 42. Qh5 {[%clk 0:00:03]} 42... Rxh5 {[%clk 0:00:28.4]} 0-1

[Event "Early-Titled-Tuesday-Blitz-September-05-2023"]
[Site "Chess.com"]
[Date "2023.09.05"]
[Round "2"]
[White "nss13"]
[Black "kaanadayhamle"]
[Result "0-1"]
[WhiteElo "2467"]
[BlackElo "2361"]
[TimeControl "180+1"]
[EndTime "8:17:26 PDT"]
[Termination "kaanadayhamle won on time"]

1. e4 {[%clk 0:03:00.9]} 1... c5 {[%clk 0:02:54.2]} 2. Nf3 {[%clk 0:03:00.8]}
2... a6 {[%clk 0:02:54.7]} 3. c4 {[%clk 0:03:00.3]} 3... Nc6 {[%clk 0:02:53.6]}
4. d4 {[%clk 0:03:00]} 4... cxd4 {[%clk 0:02:54]} 5. Nxd4 {[%clk 0:03:00.9]}
5... e5 {[%clk 0:02:52.4]} 6. Nc2 {[%clk 0:02:59.2]} 6... Nf6 {[%clk 0:02:50.1]}
7. Nc3 {[%clk 0:02:58.8]} 7... Bc5 {[%clk 0:02:49.3]} 8. Be2 {[%clk 0:02:57.6]}
8... d6 {[%clk 0:02:48.2]} 9. O-O {[%clk 0:02:57.6]} 9... O-O {[%clk 0:02:47.8]}
10. Bg5 {[%clk 0:02:55.9]} 10... h6 {[%clk 0:02:47.5]} 11. Be3 {[%clk
0:02:41.9]} 11... Bxe3 {[%clk 0:02:45.4]} 12. Nxe3 {[%clk 0:02:42.8]} 12... Nd4
{[%clk 0:02:45.6]} 13. Bd3 {[%clk 0:02:38.3]} 13... Be6 {[%clk 0:02:45.2]} 14.
Ncd5 {[%clk 0:02:35.7]} 14... Bxd5 {[%clk 0:02:43.8]} 15. exd5 {[%clk
0:02:35.7]} 15... Rc8 {[%clk 0:02:41.8]} 16. a4 {[%clk 0:02:27.9]} 16... Re8
{[%clk 0:02:40.9]} 17. f3 {[%clk 0:02:22.1]} 17... Qb6 {[%clk 0:02:40.4]} 18. a5
{[%clk 0:02:13]} 18... Qxb2 {[%clk 0:02:30.4]} 19. Rb1 {[%clk 0:02:12]} 19...
Qa3 {[%clk 0:02:30.4]} 20. Rxb7 {[%clk 0:02:04.1]} 20... Qxa5 {[%clk 0:02:29.9]}
21. Kh1 {[%clk 0:02:00]} 21... Qc5 {[%clk 0:02:28.7]} 22. Nf5 {[%clk 0:01:33.1]}
22... Nxf5 {[%clk 0:02:26.7]} 23. Bxf5 {[%clk 0:01:34]} 23... Rb8 {[%clk
0:02:23.4]} 24. Rxb8 {[%clk 0:01:24.7]} 24... Rxb8 {[%clk 0:02:24.3]} 25. Qa4
{[%clk 0:01:22.4]} 25... a5 {[%clk 0:02:24.5]} 26. Ra1 {[%clk 0:01:15.8]} 26...
g6 {[%clk 0:02:09.8]} 27. Bd3 {[%clk 0:01:11.8]} 27... Qd4 {[%clk 0:01:46.4]}
28. Bf1 {[%clk 0:01:08.5]} 28... Ra8 {[%clk 0:01:41.8]} 29. Rb1 {[%clk
0:01:01.4]} 29... Ra7 {[%clk 0:01:07.3]} 30. Qc6 {[%clk 0:00:51.7]} 30... Qc5
{[%clk 0:00:56.6]} 31. Qa4 {[%clk 0:00:31]} 31... Kg7 {[%clk 0:00:55.9]} 32. Rb5
{[%clk 0:00:19.4]} 32... Qf2 {[%clk 0:00:55.9]} 33. Rb1 {[%clk 0:00:19.5]} 33...
h5 {[%clk 0:00:51.6]} 34. Qc6 {[%clk 0:00:15.5]} 34... a4 {[%clk 0:00:43.8]} 35.
Qxd6 {[%clk 0:00:14.6]} 35... a3 {[%clk 0:00:43.7]} 36. Qxe5 {[%clk 0:00:14.6]}
36... a2 {[%clk 0:00:43.9]} 37. Ra1 {[%clk 0:00:15.1]} 37... Rb7 {[%clk
0:00:35.9]} 38. h3 {[%clk 0:00:08.2]} 38... Rb1 {[%clk 0:00:32.2]} 39. Kh2
{[%clk 0:00:08.5]} 39... Qxf1 {[%clk 0:00:29.4]} 40. Rxa2 {[%clk 0:00:09]} 40...
h4 {[%clk 0:00:26.7]} 0-1

[Event "Early-Titled-Tuesday-Blitz-September-05-2023"]
[Site "Chess.com"]
[Date "2023.09.05"]
[Round "2"]
[White "Aureliano-Buendia"]
[Black "dropstoneDP"]
[Result "0-1"]
[WhiteElo "2651"]
[BlackElo "3005"]
[TimeControl "180+1"]
[EndTime "8:17:27 PDT"]
[Termination "dropstoneDP won by resignation"]

1. e4 {[%clk 0:03:00.9]} 1... e5 {[%clk 0:02:46.1]} 2. Nf3 {[%clk 0:03:00.3]}
2... Nf6 {[%clk 0:02:45.7]} 3. Nc3 {[%clk 0:02:59.2]} 3... Nc6 {[%clk
0:02:45.8]} 4. Bc4 {[%clk 0:02:58.9]} 4... Nxe4 {[%clk 0:02:45.2]} 5. O-O {[%clk
0:02:57.1]} 5... Nxc3 {[%clk 0:02:45.3]} 6. dxc3 {[%clk 0:02:56.2]} 6... f6
{[%clk 0:02:45.6]} 7. Nh4 {[%clk 0:02:50.8]} 7... g6 {[%clk 0:02:44.2]} 8. f4
{[%clk 0:02:47.2]} 8... Qe7 {[%clk 0:02:42.3]} 9. Kh1 {[%clk 0:02:41.7]} 9... d6
{[%clk 0:02:41.1]} 10. f5 {[%clk 0:02:41.3]} 10... Qg7 {[%clk 0:02:20.3]} 11.
Be3 {[%clk 0:02:22.8]} 11... Bd7 {[%clk 0:02:20]} 12. b4 {[%clk 0:02:18.8]}
12... Ne7 {[%clk 0:02:18.8]} 13. Be6 {[%clk 0:02:05.8]} 13... Bxe6 {[%clk
0:02:04.8]} 14. fxe6 {[%clk 0:02:05.4]} 14... f5 {[%clk 0:02:05.7]} 15. Qf3
{[%clk 0:01:57.7]} 15... O-O-O {[%clk 0:01:56.9]} 16. Bxa7 {[%clk 0:01:54.4]}
16... Qf6 {[%clk 0:01:57.3]} 17. g3 {[%clk 0:01:49.9]} 17... Qxe6 {[%clk
0:01:56.4]} 18. Rfd1 {[%clk 0:01:45.6]} 18... Qc4 {[%clk 0:01:55]} 19. Ng2
{[%clk 0:01:30.2]} 19... Bg7 {[%clk 0:01:53.3]} 20. Bg1 {[%clk 0:01:23]} 20...
h5 {[%clk 0:01:45.1]} 21. Qe3 {[%clk 0:01:18.3]} 21... h4 {[%clk 0:01:40.9]} 22.
gxh4 {[%clk 0:01:13.7]} 22... f4 {[%clk 0:01:19.7]} 23. Qf3 {[%clk 0:00:57.6]}
23... Qc6 {[%clk 0:01:18.4]} 24. Qxc6 {[%clk 0:00:49.7]} 24... bxc6 {[%clk
0:01:16.5]} 25. Bf2 {[%clk 0:00:50.6]} 25... Nf5 {[%clk 0:01:16.4]} 26. Rg1
{[%clk 0:00:47.7]} 26... Bf6 {[%clk 0:01:12.7]} 27. a4 {[%clk 0:00:42.7]} 27...
Rh5 {[%clk 0:01:01.8]} 28. b5 {[%clk 0:00:41.2]} 28... cxb5 {[%clk 0:00:59.4]}
29. axb5 {[%clk 0:00:41.8]} 29... Rdh8 {[%clk 0:00:58.4]} 30. Ra8+ {[%clk
0:00:38.9]} 30... Kd7 {[%clk 0:00:58.1]} 31. Ra7 {[%clk 0:00:39.5]} 31... f3
{[%clk 0:00:50.7]} 32. b6 {[%clk 0:00:22.2]} 32... fxg2+ {[%clk 0:00:48.3]} 33.
Rxg2 {[%clk 0:00:23.1]} 33... Ke6 {[%clk 0:00:26.8]} 34. Rxg6 {[%clk 0:00:18.8]}
34... cxb6 {[%clk 0:00:24.6]} 35. Rb7 {[%clk 0:00:15.6]} 35... Nxh4 {[%clk
0:00:24.1]} 36. Bxh4 {[%clk 0:00:11.4]} 36... Rxh4 {[%clk 0:00:25]} 37. Rg2
{[%clk 0:00:11.5]} 37... e4 {[%clk 0:00:22.7]} 38. Rxb6 {[%clk 0:00:10.8]} 38...
Be5 {[%clk 0:00:23.1]} 39. Re2 {[%clk 0:00:10.1]} 39... Rxh2+ {[%clk 0:00:23.1]}
40. Rxh2 {[%clk 0:00:09.7]} 40... Rxh2+ {[%clk 0:00:24]} 41. Kg1 {[%clk
0:00:10.4]} 41... Rxc2 {[%clk 0:00:24.9]} 0-1

[Event "Early-Titled-Tuesday-Blitz-September-05-2023"]
[Site "Chess.com"]
[Date "2023.09.05"]
[Round "2"]
[White "bazar-wokzal"]
[Black "Zheenbekov86"]
[Result "0-1"]
[WhiteElo "2534"]
[BlackElo "2407"]
[TimeControl "180+1"]
[EndTime "8:17:28 PDT"]
[Termination "Zheenbekov86 won by checkmate"]

1. e4 {[%clk 0:03:00.9]} 1... e5 {[%clk 0:02:59.6]} 2. Bc4 {[%clk 0:03:00.1]}
2... Nf6 {[%clk 0:02:59.2]} 3. d3 {[%clk 0:03:00.2]} 3... Bc5 {[%clk 0:02:58.3]}
4. Nf3 {[%clk 0:03:00.5]} 4... d6 {[%clk 0:02:57.7]} 5. Bg5 {[%clk 0:03:00.1]}
5... h6 {[%clk 0:02:56.5]} 6. Bh4 {[%clk 0:03:00]} 6... O-O {[%clk 0:02:54.7]}
7. Nc3 {[%clk 0:02:58.4]} 7... c6 {[%clk 0:02:54.5]} 8. h3 {[%clk 0:02:57.3]}
8... Re8 {[%clk 0:02:52.9]} 9. O-O {[%clk 0:02:41]} 9... Nbd7 {[%clk 0:02:34.5]}
10. Re1 {[%clk 0:02:39.4]} 10... Nf8 {[%clk 0:02:33.5]} 11. d4 {[%clk
0:02:34.7]} 11... exd4 {[%clk 0:02:21.4]} 12. Nxd4 {[%clk 0:02:34.3]} 12... Ng6
{[%clk 0:02:21.1]} 13. Bg3 {[%clk 0:02:32.7]} 13... a5 {[%clk 0:02:13.8]} 14.
Nb3 {[%clk 0:02:26.9]} 14... Bb4 {[%clk 0:02:11]} 15. a3 {[%clk 0:02:16.2]}
15... Bxc3 {[%clk 0:02:10.5]} 16. bxc3 {[%clk 0:02:17.1]} 16... Ne5 {[%clk
0:02:10.2]} 17. Bf1 {[%clk 0:02:14.3]} 17... Qc7 {[%clk 0:01:46.9]} 18. Nd4
{[%clk 0:02:12.2]} 18... Qb6 {[%clk 0:01:19.7]} 19. Kh1 {[%clk 0:01:54.9]} 19...
Qc5 {[%clk 0:01:18.1]} 20. f4 {[%clk 0:01:49.6]} 20... Ng6 {[%clk 0:01:11.7]}
21. Qf3 {[%clk 0:01:46.7]} 21... d5 {[%clk 0:01:05.8]} 22. exd5 {[%clk
0:01:33.6]} 22... Rxe1 {[%clk 0:01:03.1]} 23. Rxe1 {[%clk 0:01:32.5]} 23... cxd5
{[%clk 0:01:02.5]} 24. f5 {[%clk 0:01:28.2]} 24... Nf8 {[%clk 0:01:02.1]} 25.
Be5 {[%clk 0:00:51.6]} 25... Ne4 {[%clk 0:01:01.7]} 26. c4 {[%clk 0:00:49.4]}
26... f6 {[%clk 0:00:46.8]} 27. Nb3 {[%clk 0:00:32.6]} 27... Qxa3 {[%clk
0:00:42.7]} 28. Bd4 {[%clk 0:00:20.3]} 28... Bxf5 {[%clk 0:00:42.4]} 29. g4
{[%clk 0:00:16.6]} 29... Bg6 {[%clk 0:00:41.7]} 30. cxd5 {[%clk 0:00:16.6]}
30... Re8 {[%clk 0:00:40.5]} 31. Bc4 {[%clk 0:00:15.5]} 31... Kh7 {[%clk
0:00:39.1]} 32. Bd3 {[%clk 0:00:13.6]} 32... Qb4 {[%clk 0:00:33.6]} 33. Rxe4
{[%clk 0:00:12.5]} 33... Rxe4 {[%clk 0:00:30]} 34. Bxe4 {[%clk 0:00:09.2]} 34...
Qe1+ {[%clk 0:00:29.9]} 35. Kh2 {[%clk 0:00:09.3]} 35... Bxe4 {[%clk 0:00:29]}
36. Qe3 {[%clk 0:00:09.2]} 36... Qh1+ {[%clk 0:00:24.8]} 37. Kg3 {[%clk
0:00:09]} 37... Qg2+ {[%clk 0:00:24.1]} 38. Kh4 {[%clk 0:00:06.8]} 38... g5+
{[%clk 0:00:23.9]} 39. Kh5 {[%clk 0:00:07.1]} 39... Bg6# {[%clk 0:00:23.9]} 0-1

[Event "Early-Titled-Tuesday-Blitz-September-05-2023"]
[Site "Chess.com"]
[Date "2023.09.05"]
[Round "2"]
[White "korbul"]
[Black "Beca95"]
[Result "0-1"]
[WhiteElo "2642"]
[BlackElo "2987"]
[TimeControl "180+1"]
[EndTime "8:17:29 PDT"]
[Termination "Beca95 won by resignation"]

1. e4 {[%clk 0:02:58.9]} 1... c5 {[%clk 0:03:00]} 2. Nf3 {[%clk 0:02:57.4]} 2...
d6 {[%clk 0:03:00.6]} 3. Bb5+ {[%clk 0:02:54.6]} 3... Nd7 {[%clk 0:02:58.3]} 4.
O-O {[%clk 0:02:52.3]} 4... a6 {[%clk 0:02:58.4]} 5. Bxd7+ {[%clk 0:02:51.6]}
5... Bxd7 {[%clk 0:02:59.3]} 6. d4 {[%clk 0:02:50.7]} 6... cxd4 {[%clk
0:02:58.3]} 7. Qxd4 {[%clk 0:02:50.3]} 7... e5 {[%clk 0:02:58.6]} 8. Qd3 {[%clk
0:02:49.9]} 8... Rc8 {[%clk 0:02:59]} 9. c4 {[%clk 0:02:49.3]} 9... b5 {[%clk
0:02:55.1]} 10. b3 {[%clk 0:02:46.6]} 10... Be7 {[%clk 0:02:52.2]} 11. Ba3
{[%clk 0:02:45.4]} 11... bxc4 {[%clk 0:02:45.4]} 12. bxc4 {[%clk 0:02:45]} 12...
Qc7 {[%clk 0:02:45.9]} 13. Nbd2 {[%clk 0:02:42.2]} 13... Nf6 {[%clk 0:02:45.5]}
14. Rfc1 {[%clk 0:02:40.2]} 14... O-O {[%clk 0:02:45.2]} 15. h3 {[%clk
0:02:38.7]} 15... Be6 {[%clk 0:02:40.3]} 16. Bb4 {[%clk 0:02:37]} 16... a5
{[%clk 0:02:36.1]} 17. Ba3 {[%clk 0:02:36.6]} 17... Nd7 {[%clk 0:02:35]} 18.
Rab1 {[%clk 0:02:29.8]} 18... a4 {[%clk 0:02:22.5]} 19. Rb5 {[%clk 0:02:26.4]}
19... f5 {[%clk 0:02:15]} 20. Bb4 {[%clk 0:02:10.9]} 20... Kh8 {[%clk
0:02:07.9]} 21. a3 {[%clk 0:02:09.6]} 21... Qc6 {[%clk 0:02:05.7]} 22. Ra5
{[%clk 0:02:07.7]} 22... fxe4 {[%clk 0:01:55.1]} 23. Nxe4 {[%clk 0:02:07]} 23...
d5 {[%clk 0:01:35.6]} 24. Bxe7 {[%clk 0:01:56]} 24... dxe4 {[%clk 0:01:34.6]}
25. Qd6 {[%clk 0:01:45.1]} 25... Qxd6 {[%clk 0:01:29.1]} 26. Bxd6 {[%clk
0:01:44.8]} 26... exf3 {[%clk 0:01:28.4]} 27. Bxf8 {[%clk 0:01:44.5]} 27... Nxf8
{[%clk 0:01:26.1]} 28. Rxa4 {[%clk 0:01:36.6]} 28... fxg2 {[%clk 0:01:24]} 29.
Kxg2 {[%clk 0:01:35.5]} 29... Bd7 {[%clk 0:01:20.9]} 30. Ra5 {[%clk 0:01:31.3]}
30... Ng6 {[%clk 0:01:20.8]} 31. Kg3 {[%clk 0:01:25.7]} 31... Bc6 {[%clk
0:01:19.3]} 32. Rc5 {[%clk 0:01:24.5]} 32... h6 {[%clk 0:00:55.5]} 33. a4 {[%clk
0:01:23.8]} 33... Nf4 {[%clk 0:00:55]} 34. Rd1 {[%clk 0:01:17.5]} 34... Ne2+
{[%clk 0:00:52.7]} 35. Kh2 {[%clk 0:01:12.4]} 35... Nd4 {[%clk 0:00:52.6]} 36.
Kg3 {[%clk 0:01:07.6]} 36... Nb3 {[%clk 0:00:20.8]} 37. Rxe5 {[%clk 0:01:05.8]}
37... Bxa4 {[%clk 0:00:20.9]} 38. Rde1 {[%clk 0:00:37.7]} 38... Rxc4 {[%clk
0:00:20.1]} 39. Re7 {[%clk 0:00:37.2]} 39... Nc5 {[%clk 0:00:17.7]} 40. R1e5
{[%clk 0:00:32.5]} 40... Bc2 {[%clk 0:00:16.3]} 41. f3 {[%clk 0:00:31.7]} 41...
Nd3 {[%clk 0:00:16]} 42. Re4 {[%clk 0:00:28.6]} 42... Rc5 {[%clk 0:00:16.3]} 43.
h4 {[%clk 0:00:27.5]} 43... Kh7 {[%clk 0:00:16.5]} 44. Rd7 {[%clk 0:00:25.2]}
44... Ne5 {[%clk 0:00:16]} 45. Rd2 {[%clk 0:00:24.1]} 45... Bxe4 {[%clk
0:00:15.3]} 46. fxe4 {[%clk 0:00:24]} 46... Kg6 {[%clk 0:00:15.6]} 0-1

[Event "Early-Titled-Tuesday-Blitz-September-05-2023"]
[Site "Chess.com"]
[Date "2023.09.05"]
[Round "2"]
[White "ykam78"]
[Black "andrzej"]
[Result "0-1"]
[WhiteElo "2521"]
[BlackElo "2382"]
[TimeControl "180+1"]
[EndTime "8:17:29 PDT"]
[Termination "andrzej won by checkmate"]

1. e4 {[%clk 0:02:43.8]} 1... e5 {[%clk 0:02:59.7]} 2. Nf3 {[%clk 0:02:42.4]}
2... Nf6 {[%clk 0:03:00.2]} 3. Nxe5 {[%clk 0:02:40.6]} 3... d6 {[%clk
0:03:00.8]} 4. Nf3 {[%clk 0:02:38.3]} 4... Nxe4 {[%clk 0:03:01.3]} 5. d4 {[%clk
0:02:36.6]} 5... d5 {[%clk 0:03:01]} 6. Bd3 {[%clk 0:02:37.2]} 6... Be7 {[%clk
0:03:01.4]} 7. O-O {[%clk 0:02:37.7]} 7... Bf5 {[%clk 0:03:01.8]} 8. Re1 {[%clk
0:02:38.3]} 8... O-O {[%clk 0:03:01.9]} 9. c4 {[%clk 0:02:38.9]} 9... Nc6 {[%clk
0:02:57.1]} 10. cxd5 {[%clk 0:02:32.5]} 10... Qxd5 {[%clk 0:02:57]} 11. Nc3
{[%clk 0:02:33.2]} 11... Nxc3 {[%clk 0:02:56.6]} 12. bxc3 {[%clk 0:02:34.1]}
12... Bxd3 {[%clk 0:02:56.3]} 13. Qxd3 {[%clk 0:02:35]} 13... Rae8 {[%clk
0:02:54.2]} 14. a4 {[%clk 0:02:32.8]} 14... h6 {[%clk 0:02:39.1]} 15. Be3 {[%clk
0:02:18.2]} 15... Bd6 {[%clk 0:02:23.3]} 16. c4 {[%clk 0:02:15.8]} 16... Qe4
{[%clk 0:02:14.8]} 17. Qxe4 {[%clk 0:02:07.6]} 17... Rxe4 {[%clk 0:02:14.4]} 18.
a5 {[%clk 0:02:08.5]} 18... Rfe8 {[%clk 0:01:57.5]} 19. c5 {[%clk 0:01:39.4]}
19... Bf8 {[%clk 0:01:45.8]} 20. Reb1 {[%clk 0:01:40.1]} 20... Nd8 {[%clk
0:01:26.9]} 21. h3 {[%clk 0:01:20.1]} 21... g5 {[%clk 0:01:16]} 22. Nd2 {[%clk
0:01:07.6]} 22... R4e7 {[%clk 0:01:05.9]} 23. Nc4 {[%clk 0:01:07.6]} 23... Bg7
{[%clk 0:01:01.9]} 24. a6 {[%clk 0:00:36]} 24... bxa6 {[%clk 0:01:01.7]} 25.
Rxa6 {[%clk 0:00:35.3]} 25... Ne6 {[%clk 0:00:47.1]} 26. d5 {[%clk 0:00:26.3]}
26... Nd4 {[%clk 0:00:47]} 27. Rxa7 {[%clk 0:00:21.9]} 27... Ne2+ {[%clk
0:00:45.2]} 28. Kf1 {[%clk 0:00:19.4]} 28... Nc3 {[%clk 0:00:46.1]} 29. Rbb7
{[%clk 0:00:19.5]} 29... Nxd5 {[%clk 0:00:45.6]} 30. Ke2 {[%clk 0:00:17.6]}
30... Bd4 {[%clk 0:00:39.7]} 31. Kf3 {[%clk 0:00:16.2]} 31... Nxe3 {[%clk
0:00:35.5]} 32. fxe3 {[%clk 0:00:15.4]} 32... Bxc5 {[%clk 0:00:30.3]} 33. Ra6
{[%clk 0:00:15.6]} 33... Kg7 {[%clk 0:00:25.7]} 34. Rc6 {[%clk 0:00:15.5]} 34...
Bxe3 {[%clk 0:00:24.1]} 35. Rcxc7 {[%clk 0:00:15.9]} 35... Rxc7 {[%clk
0:00:13.9]} 36. Rxc7 {[%clk 0:00:16.8]} 36... Bd4 {[%clk 0:00:13.4]} 37. Nd6
{[%clk 0:00:14.3]} 37... Re3+ {[%clk 0:00:13.2]} 38. Kg4 {[%clk 0:00:13.6]}
38... Kg6 {[%clk 0:00:11.7]} 39. h4 {[%clk 0:00:08.3]} 39... h5# {[%clk
0:00:11.1]} 0-1